fUSD/lending_fUSD_20240718
["ID","MTS","AMOUNT","RATE_DAILY","PERIOD"]
[332592022,1721319038860,-181.0,0.0002989,2]
[332592024,1721319038870,-181.0,0.0002989,2]
[332592026,1721319038881,-181.0,0.0002989,2]
[332592028,1721319038891,-181.0,0.0002989,2]
[332592030,1721319038900,-181.0,0.0002989,2]
[332592032,1721319038911,-181.0,0.0002989,2]
[332592034,1721319038921,-181.0,0.0002989,2]
[332592036,1721319038930,-181.0,0.0002989,2]
[332592037,1721319038940,-181.0,0.0002989,2]
[332592039,1721319038949,-181.0,0.0002989,2]
[332592041,1721319038959,-181.0,0.0002989,2]
[332592043,1721319038968,-181.0,0.0002989,2]
[332592045,1721319038978,-181.0,0.0002989,2]
[332592047,1721319038988,-181.0,0.0002989,2]
[332592049,1721319038997,-181.0,0.0002989,2]
[332592051,1721319039007,-181.0,0.0002989,2]
[332592053,1721319039016,-181.0,0.0002989,2]
[332592055,1721319039027,-181.0,0.0002989,2]
[332592058,1721319039037,-181.0,0.0002989,2]
[332592060,1721319039047,-181.0,0.0002989,2]
[332592062,1721319039056,-181.0,0.0002989,2]
[332592064,1721319039065,-181.0,0.0002989,2]
[332592065,1721319039075,-181.0,0.0002989,2]
[332592067,1721319039084,-181.0,0.0002989,2]
[332592069,1721319039093,-181.0,0.0002989,2]
[332592071,1721319039104,-181.0,0.0002989,2]
[332592073,1721319039113,-181.0,0.0002989,2]
[332592075,1721319039122,-181.0,0.0002989,2]
[332592077,1721319039131,-150.0,0.000299,2]
[332592079,1721319039141,-5800.0,0.00029948,2]
[332592081,1721319039150,-5800.0,0.00029956,2]
[332592083,1721319039160,-5800.0,0.00029965,2]
[332592085,1721319039170,-5800.0,0.00029974,2]
[332592087,1721319039179,-5800.0,0.00029982,2]
[332592089,1721319039189,-5800.0,0.00029991,2]
[332592091,1721319039198,-1880.62450834,0.00029999,2]
[332592094,1721319039210,-761.20789396,0.00029999,2]
[332592096,1721319039221,-1355.09829758,0.00029999,2]
[332592098,1721319039232,-1803.06930012,0.00029999,2]
[332592100,1721319039241,-325.0,0.000301,2]
[332592102,1721319039251,-942.86456574,0.000301,2]
[332592104,1721319039261,-200.0,0.000301,2]
[332592106,1721319039271,-156.01357117,0.00030201,7]
[332592108,1721319039281,-151.23259796,0.0003035,7]
[332592110,1721319039290,-221.31,0.00030363,2]
[332592112,1721319039300,-153.55759405,0.00030424,7]
[332592114,1721319039309,-150.96706143,0.00030512,7]
[332592116,1721319039319,-150.96706143,0.00030654,7]
[332592117,1721319039329,-179.33459942,0.000307,2]
[332592119,1721319039338,-1500.0,0.000307,2]
[332592121,1721319039348,-155.15152638,0.00030971,7]
[332592123,1721319039358,-155.15152638,0.0003108,7]
[332592125,1721319039368,-151.81624989,0.00031283,7]
[332592127,1721319039378,-155.15152638,0.00031779,7]
[332592129,1721319039387,-1000.0,0.00032277,2]
[332592131,1721319039397,-150.0,0.00032422,2]
[332592133,1721319039407,-3000.0,0.000326,2]
[332592135,1721319039416,-221.31,0.00032627,2]
[332592137,1721319039426,-248.809,0.00032774,2]
[332592139,1721319039435,-5944.579,0.00032774,2]
[332592140,1721319039444,-5117.0,0.00032774,2]
[332592142,1721319039454,-38322.0,0.00032774,2]
[332592144,1721319039464,-1201.0,0.00032774,2]
[332592146,1721319039473,-1673.825,0.00032774,2]
[332592148,1721319039482,-153.66948282,0.00032804,7]
[332592150,1721319039492,-155.15152642,0.00032809,7]
[332592152,1721319039501,-170.24,0.00032877,2]
[332592154,1721319039512,-153.66948282,0.00032985,7]
[332592156,1721319039522,-1067.1226204,0.00033,2]
[332592158,1721319039531,-245.428549,0.00033,6]
[332592160,1721319039541,-305.06,0.00033045,120]
[332592162,1721319039551,-161.83719273,0.00033075,7]
[332592164,1721319039561,-151.23259797,0.00033487,7]
[332592166,1721319039571,-155.52261728,0.0003373,7]
[332592168,1721319039581,-234.87,0.00033785,2]
[332592170,1721319039590,-150.96706143,0.00034008,7]
[332592172,1721319039600,-1035.79606684,0.00034088,5]
[332592174,1721319039610,-1142.86590422,0.00034088,5]
[332592176,1721319039619,-500.0,0.00034164,60]
[332592178,1721319039629,-500.0,0.00034164,60]
[332592180,1721319039639,-179.68043248,0.0003424,7]
[332592182,1721319039650,-2000.0,0.00034246,30]
[332592184,1721319039660,-340.2780217,0.00034393,15]
[332592186,1721319039669,-340.27802163,0.00034426,15]
[332592188,1721319039679,-500.0,0.00034438,63]
[332592190,1721319039688,-500.0,0.00034438,63]
[332592192,1721319039698,-3000.0,0.0003444,2]
[332592194,1721319039708,-340.27802163,0.0003446,15]
[332592196,1721319039718,-3033.78671203,0.00034493,15]
[332592198,1721319039728,-340.27802163,0.00034493,15]
[332592200,1721319039738,-1000.0,0.000345,7]
[332592202,1721319039748,-1000.0,0.000345,7]
[332592204,1721319039757,-1927.92209274,0.00034514,4]
[332592206,1721319039767,-3033.78671197,0.00034515,15]
[332592208,1721319039776,-500.0,0.00034516,10]
[332592210,1721319039786,-200.0,0.00034516,10]
[332592213,1721319039796,-2020.99627439,0.00034519,2]
[332592216,1721319039806,-2000.0,0.0003452,32]
[332592219,1721319039815,-150.0,0.00034521,2]
[332592222,1721319039830,-340.27802163,0.00034527,15]
[332592224,1721319039839,-302.02,0.00034533,2]
[332592226,1721319039848,-717.37799015,0.00034537,2]
[332592228,1721319039858,-3033.78671197,0.00034538,15]
[332592230,1721319039868,-3033.78671197,0.0003456,15]
[332592232,1721319039878,-340.27802163,0.0003456,15]
[332592234,1721319039888,-327.58779712,0.0003458,4]
[332592236,1721319039900,-153.66948282,0.00034581,7]
[332592238,1721319039910,-3033.78671197,0.00034582,15]
[332592240,1721319039920,-326.2628,0.00034584,2]
[332592242,1721319039930,-453.463,0.00034584,2]
[332592244,1721319039940,-6502.6672,0.00034584,2]
[332592246,1721319039950,-340.27802163,0.00034594,15]
[332592248,1721319039960,-13439.73,0.000346,2]
[332592250,1721319039970,-358.04584466,0.000346,2]
[332592252,1721319039984,-3033.78671197,0.00034605,15]
[332592254,1721319039994,-634.27413971,0.00034619,5]
[332592256,1721319040004,-3033.78671197,0.00034627,15]
[332592258,1721319040014,-340.27802163,0.00034627,15]
[332592260,1721319040024,-3033.78671197,0.00034649,15]
[332592262,1721319040033,-340.27802163,0.00034661,15]
[332592265,1721319040043,-3033.78671197,0.00034672,15]
[332592268,1721319040052,-2377.04,0.00034674,2]
[332592270,1721319040061,-7500.0,0.00034684,2]
[332592273,1721319040071,-2377.04,0.00034684,2]
[332592275,1721319040081,-25593.6853799,0.0003469,5]
[332592277,1721319040090,-2377.04,0.0003469,2]
[332592278,1721319040100,-886.5729,0.00034693,2]
[332592279,1721319040109,-617.8216,0.00034694,2]
[332592281,1721319040119,-150.0,0.00034694,2]
[332592283,1721319040129,-216.0,0.00034694,2]
[332592285,1721319040139,-1000.0,0.00034694,2]
[332592287,1721319040149,-2000.0,0.00034694,2]
[332592289,1721319040159,-660.0,0.00034694,5]
[332592291,1721319040169,-3033.78671197,0.00034694,15]
[332592293,1721319040179,-340.27802163,0.00034694,15]
[332592295,1721319040188,-17160.65509095,0.00034694,2]
[332592297,1721319040198,-190.396022,0.00034694,2]
[332592299,1721319040208,-998.93537444,0.00034694,2]
[332592301,1721319040217,-9105.95358045,0.000347,30]
[332592304,1721319040858,-700.77927048,0.000347,30]
[332592305,1721319040876,-1017.53269268,0.000347,30]
[332592306,1721319041675,-214.651904,0.00014393,2]
[332592307,1721319041685,-1072.0,0.00032774,2]
[332592308,1721319041694,-188.4103101,0.00034514,4]
[332592309,1721319041703,-69340.48618049,0.000347,30]
[332592310,1721319041823,-303.78677249,0.000347,30]
[332592311,1721319041851,-2600.0589384,0.000347,30]
[332592312,1721319042433,-2556.58178938,0.000347,30]
[332592313,1721319042452,-12687.70892956,0.000347,30]
[332592314,1721319042462,-150.0,0.000347,2]
[332592315,1721319042471,-258.0,0.000347,8]
[332592316,1721319042482,-500.0,0.00034712,66]
[332592317,1721319042492,-500.0,0.00034712,66]
[332592318,1721319042502,-300.0,0.00034719,2]
[332592319,1721319042514,-2377.04,0.00034764,2]
[332592320,1721319042523,-2377.04,0.00034764,2]
[332592321,1721319042534,-196.58330749,0.00034773,4]
[332592322,1721319042543,-177.15379087,0.00034774,2]
[332592323,1721319042553,-1687.18838083,0.00034774,5]
[332592324,1721319042565,-636.42,0.00034774,5]
[332592325,1721319042576,-460.56973873,0.00034774,5]
[332592326,1721319042588,-12317.93100775,0.00034774,5]
[332592327,1721319042617,-5442.14758233,0.00034774,5]
[332592328,1721319042647,-1003.48536654,0.00034774,5]
[332592329,1721319042660,-55233.31406362,0.00034774,5]
[332592330,1721319042669,-6398.42134498,0.00034774,5]
[332592331,1721319042679,-155.0,0.00034783,4]
[332592332,1721319042689,-12796.84269,0.00034783,5]
[332592333,1721319042700,-57859.82585818,0.00034784,5]
[332592356,1721319043572,-745.83403878,0.00034784,5]
[332592359,1721319043584,-496.786,0.00034784,5]
[332592362,1721319043608,-49670.71696804,0.00034784,5]
[332592365,1721319043619,-177.15379087,0.00034784,2]
[332592368,1721319043629,-177.15379087,0.00034784,2]
[332592370,1721319043639,-199.79938361,0.00034784,10]
[332592372,1721319043648,-690.48971807,0.00034784,4]
[332592374,1721319043658,-170.08264759,0.00034784,4]
[332592376,1721319043668,-5760.25415122,0.00034784,30]
[332592377,1721319043677,-2000.0,0.00034784,2]
[332592378,1721319043687,-2000.0,0.00034784,2]
[332592379,1721319043697,-200.0,0.00034784,2]
[332592381,1721319043707,-2000.0,0.00034784,2]
[332592383,1721319043716,-200.0,0.00034784,2]
[332592385,1721319043726,-200.0,0.00034784,2]
[332592386,1721319043735,-5800.0,0.00034788,2]
[332592388,1721319043744,-200.42,0.00034789,5]
[332592390,1721319043754,-171.5873558,0.0003479,2]
[332592392,1721319043763,-857.936779,0.00034791,2]
[332592394,1721319043773,-650.01601297,0.00034793,2]
[332592395,1721319043783,-300.02,0.00034793,2]
[332592396,1721319043792,-2000.0,0.00034793,2]
[332592397,1721319043801,-2000.0,0.00034793,2]
[332592398,1721319043811,-2000.0,0.00034793,2]
[332592399,1721319043820,-2000.0,0.00034793,2]
[332592400,1721319043832,-2000.0,0.00034793,2]
[332592401,1721319043845,-2000.0,0.00034793,2]
[332592402,1721319043855,-2000.0,0.00034793,2]
[332592403,1721319043864,-955.15770511,0.00034793,2]
[332592404,1721319044175,-457.46955249,0.00034793,2]
[332592405,1721319044188,-587.3727424,0.00034793,2]
[332592406,1721319044200,-1189.91468592,0.00034793,2]
[332592407,1721319044219,-810.08531408,0.00034793,2]
[332592408,1721319044235,-2000.0,0.00034793,2]
[332592409,1721319044248,-4140.13673969,0.00034793,2]
[332592410,1721319044262,-112.27794623,0.00034794,21]
[332592411,1721319044281,-65685.8788063,0.00034794,21]
[332592412,1721319044763,-256.01089791,0.00034794,21]
[332592413,1721319044782,-33214.13863239,0.00034794,21]
[332592414,1721319044799,-1158.1131945,0.00034794,21]
[332592415,1721319044817,-9404.65399818,0.00034794,21]
[332592416,1721319044837,-22420.08937347,0.00034794,21]
[332592417,1721319044852,-1271.27,0.00034794,21]
[332592418,1721319044869,-1050.0,0.00034794,21]
[332592419,1721319044887,-3182.099772,0.00034794,21]
[332592420,1721319044906,-386.30758598,0.00034794,21]
[332592421,1721319044925,-66640.68513459,0.00034794,21]
[332592422,1721319044939,-4816.72137975,0.00034794,21]
[332592423,1721319044955,-1868.44499538,0.00034794,21]
[332592424,1721319044973,-580.68380965,0.00034794,21]
[332592425,1721319044991,-1444.38122157,0.00034794,21]
[332592443,1721319047058,-912.34615092,0.000284,5]
[332592444,1721319047073,-747.40697802,0.000284,5]
[332592445,1721319047088,-505.14,0.000284,5]
[332592446,1721319047102,-292.064,0.000284,5]
[332592447,1721319047116,-295.16661774,0.000284,5]
[332592448,1721319047130,-688.38148373,0.000284,5]
[332592449,1721319047145,-2445.96787027,0.000284,5]
[332592450,1721319047323,-856.20926424,0.000284,5]
[332592451,1721319047352,-3694.55916163,0.000284,5]
[332592452,1721319047364,-1051.75847345,0.000284,5]
[332592453,1721319047374,-587.0,0.00034782,5]
[332592454,1721319047383,-2330.66343659,0.00034794,21]
[332592455,1721319047395,-424.18779121,0.00034794,21]
[332592456,1721319047406,-449.194593,0.00034794,21]
[332592457,1721319047418,-1638.832655,0.00034794,21]
[332592458,1721319047430,-330.6470396,0.00034794,21]
[332592459,1721319047442,-588.2734021,0.00034794,21]
[332592460,1721319047551,-8043.23424148,0.00034794,21]
[332592461,1721319047563,-5650.20886601,0.00034794,21]
[332592462,1721319048053,-475.01343614,0.00034794,21]
[332592463,1721319048092,-2343.15944239,0.00034794,21]
[332592464,1721319048131,-2654.17372556,0.00034794,21]
[332592465,1721319048143,-4444.74348757,0.00034794,21]
[332592466,1721319048155,-1499.90008,0.00034794,21]
[332592467,1721319048166,-493.09011844,0.00034794,21]
[332592468,1721319048178,-6829.8415131,0.00034794,21]
[332592469,1721319048190,-18747.02763147,0.00034794,21]
[332592470,1721319048199,-500.0,0.00034794,14]
[332592471,1721319048209,-162.17267268,0.00034794,14]
[332592472,1721319048223,-337.82732732,0.00034794,14]
[332592473,1721319048234,-500.0,0.00034794,14]
[332592474,1721319048243,-500.0,0.00034794,14]
[332592475,1721319048253,-500.0,0.00034794,14]
[332592476,1721319048264,-257.3,0.00034794,14]
[332592477,1721319048274,-2.54803923,0.00034794,14]
[332592478,1721319048300,-497.45196077,0.00034794,14]
[332592479,1721319048309,-471.03935099,0.00034794,14]
[332592480,1721319048323,-28.96064901,0.00034794,14]
[332592481,1721319048332,-500.0,0.00034794,14]
[332592482,1721319048342,-500.0,0.00034794,5]
[332592483,1721319048352,-81.10654466,0.00034794,14]
[332592484,1721319048369,-230.10920025,0.00034794,14]
[332592485,1721319048379,-2116.29,0.00034794,15]
[332592486,1721319048388,-500.0,0.00034794,14]
[332592487,1721319048398,-500.0,0.00034794,14]
[332592488,1721319048407,-500.0,0.00034794,14]
[332592489,1721319048416,-500.0,0.00034794,14]
[332592490,1721319048426,-500.0,0.00034794,14]
[332592491,1721319048436,-500.0,0.00034794,14]
[332592492,1721319048446,-500.0,0.00034794,14]
[332592493,1721319048456,-500.0,0.00034794,14]
[332592494,1721319048466,-500.0,0.00034794,14]
[332592495,1721319048476,-500.0,0.00034794,14]
[332592496,1721319048488,-500.0,0.00034794,14]
[332592497,1721319048498,-500.0,0.00034794,14]
[332592498,1721319048508,-500.0,0.00034794,14]
[332592499,1721319048518,-500.0,0.00034794,14]
[332592500,1721319048528,-500.0,0.00034794,14]
[332592501,1721319048538,-425.49616853,0.00034794,14]
[332592502,1721319048547,-151.0,0.00034794,7]
[332592503,1721319048558,-151.0,0.00034794,7]
[332592504,1721319048569,-151.0,0.00034794,7]
[332592505,1721319048580,-152.499088,0.00034794,7]
[332592506,1721319048590,-500.0,0.00034794,14]
[332592507,1721319048600,-500.0,0.00034794,14]
[332592508,1721319048611,-500.0,0.00034794,14]
[332592509,1721319048620,-500.0,0.00034794,14]
[332592510,1721319048630,-500.0,0.00034794,14]
[332592511,1721319048640,-500.0,0.00034794,14]
[332592512,1721319048650,-500.0,0.00034794,14]
[332592513,1721319048661,-500.0,0.00034794,14]
[332592514,1721319048670,-357.46400898,0.00034794,14]
[332592515,1721319048725,-142.53599102,0.00034794,14]
[332592516,1721319048738,-158.5886979,0.00034794,14]
[332592517,1721319048752,-341.4113021,0.00034794,14]
[332592518,1721319048763,-414.05883086,0.00034794,14]
[332592519,1721319048778,-85.94116914,0.00034794,14]
[332592520,1721319048788,-495.08396455,0.00034794,14]
[332592521,1721319048802,-4.91603545,0.00034794,14]
[332592522,1721319048812,-384.79965759,0.00034794,14]
[332592523,1721319048833,-115.20034241,0.00034794,14]
[332592524,1721319048843,-389.56360892,0.00034794,14]
[332592525,1721319048853,-151.0,0.00034794,7]
[332592526,1721319048864,-409.41646441,0.00034794,14]
[332592527,1721319348987,242.70193871,0.00013579,2]
[332592528,1721319360009,961.76290677,0.00013579,3]
[332592529,1721319367904,300.0,0.00013579,2]
[332592530,1721319524772,263.61687953,0.00013579,2]
[332592531,1721319736771,1294.33056682,0.00013579,2]
[332592533,1721319909431,371.3671249,0.00014,2]
[332592534,1721319909463,10000.0,0.00014,2]
[332592535,1721319909494,10000.0,0.00014,2]
[332592536,1721319909524,10000.0,0.00014,2]
[332592537,1721319909552,10000.0,0.00014,2]
[332592538,1721319909581,10000.0,0.00014,2]
[332592539,1721319909609,10000.0,0.00014,2]
[332592540,1721319909637,10000.0,0.00014,2]
[332592541,1721319909666,10000.0,0.00014,2]
[332592542,1721319909697,10000.0,0.00014,2]
[332592543,1721319909725,10000.0,0.00014,2]
[332592544,1721319909754,10000.0,0.00014,2]
[332592545,1721319909781,10000.0,0.00014,2]
[332592546,1721319909808,10000.0,0.00014,2]
[332592547,1721319909836,10000.0,0.00014,2]
[332592548,1721319909864,10000.0,0.00014,2]
[332592549,1721319909892,10000.0,0.00014,2]
[332592550,1721319909919,10000.0,0.00014,2]
[332592551,1721319909948,10000.0,0.00014,2]
[332592552,1721319931098,9606.66773552,0.000118,2]
[332592553,1721319937850,1476.9626867,0.00011,2]
[332592554,1721319957187,20770.07042154,0.0001358,2]
[332592555,1721319957619,4171.1110344,6.94e-05,2]
[332592558,1721320001184,1185.83774329,8.412e-05,2]
[332592559,1721320012023,798.16396892,6.94e-05,2]
[332592570,1721320113989,734.85127068,0.00013579,2]
[332592576,1721320162090,679.34166426,0.00013579,2]
[332592588,1721320232378,-397.0,0.00013757,2]
[332592589,1721320232387,-375.20000006,0.00013758,2]
[332592590,1721320232399,-326.58551908,0.00013758,2]
[332592591,1721320232409,-1682.81222819,0.0001386,2]
[332592592,1721320232467,-3795.86506334,0.0001386,2]
[332592593,1721320232479,-72084.32270847,0.0001386,2]
[332592594,1721320232490,-2384.97376412,0.00013889,3]
[332592595,1721320232500,-219.6,0.0001389,2]
[332592596,1721320232510,-17579.06697285,0.00013896,2]
[332592597,1721320232520,-162.66784656,0.00013897,2]
[332592598,1721320232529,-36759.22469639,0.00013899,2]
[332592599,1721320232639,-1747.6383,0.00013899,2]
[332592600,1721320232652,-2159.97449723,0.00013899,2]
[332592601,1721320232663,-653.51,0.00013899,2]
[332592602,1721320232674,-600.0,0.00013899,2]
[332592603,1721320232685,-1157.040219,0.00013899,2]
[332592604,1721320232703,-4788.77565192,0.00013899,2]
[332592606,1721320232713,-652.36654686,0.00013962,2]
[332592608,1721320232722,-678.85831554,0.00013964,2]
[332592610,1721320232732,-169.69208281,0.00013965,2]
[332592613,1721320232757,-20.70393919,0.00013965,2]
[332592615,1721320232767,-676.4072806,0.0001399,2]
[332592629,1721320238334,-166115.1255967,0.0001399,2]
[332592630,1721320238345,-4070.08297907,0.0001399,2]
[332592631,1721320238376,-6984.80343518,0.0001399,2]
[332592632,1721320238387,-40188.70718728,0.0001399,2]
[332592633,1721320238399,-10609.52291017,0.0001399,2]
[332592634,1721320238408,-155.16,0.0001399,2]
[332592635,1721320238418,-155.16,0.0001399,2]
[332592636,1721320238427,-186.68847862,0.00013996,2]
[332592637,1721320238437,-3893.46861121,0.00013997,2]
[332592638,1721320238449,-4003.853329,0.00013997,2]
[332592639,1721320238468,-51154.27020683,0.00013997,2]
[332592640,1721320238496,-507.54424864,0.00013997,2]
[332592641,1721320238507,-1163.382,0.00013997,2]
[332592754,1721320240231,-355.72425126,0.00013997,2]
[332592755,1721320240294,-6488.39581319,0.00013997,2]
[332592756,1721320240355,-353.436607,0.00013997,2]
[332592757,1721320240367,-1378.44800215,0.00013997,2]
[332592758,1721320240418,-15215.80053878,0.00013997,2]
[332592759,1721320240431,-2022.46346298,0.00013997,2]
[332592760,1721320240443,-1957.90636344,0.00013997,2]
[332592761,1721320240457,-3619.44639485,0.00013997,2]
[332592762,1721320240468,-1946.8477665,0.00013997,2]
[332592763,1721320240499,-26914.51110896,0.00013997,2]
[332592764,1721320240509,-213.37598322,0.00013999,2]
[332592765,1721320240518,-500.0,0.00013999,2]
[332592766,1721320240527,-500.0,0.00013999,2]
[332592767,1721320240537,-500.0,0.00013999,2]
[332592768,1721320240546,-288.38637309,0.00013999,2]
[332592769,1721320240556,-500.0,0.00013999,2]
[332592770,1721320240565,-236.23306293,0.00013999,2]
[332592771,1721320240574,-155.0,0.00013999,2]
[332592772,1721320240583,-65305.5157615,0.00014,2]
[332592774,1721320240619,-11351686.66413501,0.00014,2]
[332592776,1721320240628,-462.46289417,0.00014064,2]
[332592777,1721320240638,-12670.9344711,0.00014065,2]
[332592778,1721320240647,-1032.47,0.00014166,2]
[332592779,1721320240656,-237.73772635,0.00014266,2]
[332592780,1721320240666,-759.04945973,0.00014988,2]
[332592782,1721320240675,-26747.1871438,0.00015,2]
[332592783,1721320240684,-17579.06697281,0.00015158,2]
[332592784,1721320240694,-169.51,0.00015302,2]
[332592785,1721320240705,-47866.16336449,0.0001621,2]
[332592787,1721320240714,-17579.06697281,0.0001642,2]
[332592789,1721320240723,-300.09478299,0.00016459,2]
[332592791,1721320240733,-169.51,0.00017215,2]
[332592793,1721320240742,-17579.06697281,0.00017681,2]
[332592795,1721320240751,-2216.0,0.00018,2]
[332592797,1721320240760,-156.81534973,0.00018079,2]
[332592799,1721320240770,-156.01357118,0.00018243,2]
[332592801,1721320240779,-47866.16336449,0.0001852,2]
[332592802,1721320240788,-156.81534973,0.00018851,2]
[332592805,1721320240798,-169.51,0.00019127,2]
[332592807,1721320240808,-154.98095528,0.00019507,2]
[332592809,1721320240819,-678.85831554,0.00019608,2]
[332592811,1721320240830,-12670.93447109,0.00019709,2]
[332592812,1721320240841,-188.4103101,0.0002,2]
[332592814,1721320240852,-153.55759405,0.00020104,2]
[332592816,1721320240861,-156.0484284,0.00020304,2]
[332592818,1721320240871,-156.81534973,0.00020781,2]
[332592820,1721320240881,-47866.16336449,0.00020831,2]
[332592822,1721320240890,-249.999999,0.00021,2]
[332592824,1721320240899,-169.51,0.0002104,2]
[332592825,1721320240909,-150.96706143,0.0002116,2]
[332592827,1721320240918,-180.0,0.00021397,2]
[332592829,1721320240928,-164.65,0.00021644,2]
[332592831,1721320240937,-170.24,0.00021918,2]
[332592833,1721320240947,-156.0484284,0.00022182,2]
[332592835,1721320240959,-169.51,0.00022953,2]
[332592837,1721320240968,-668.331,0.00023,2]
[332592839,1721320240977,-200.0,0.00023,2]
[332592841,1721320240988,-155.75613055,0.00023055,2]
[332592843,1721320240997,-47866.16336449,0.00023141,2]
[332592845,1721320241007,-13375.8007489,0.000232,2]
[332592847,1721320241018,-1927.92209274,0.0002354,2]
[332592849,1721320241028,-153.70869325,0.00023939,2]
[332592850,1721320241037,-156.81534973,0.00024626,2]
[332592851,1721320241046,-10792061.81132723,0.00025,2]
[332592898,1721320244073,-4927.94967801,0.00018943,2]
[332592899,1721320244085,-6304.4,0.00018943,2]
[332592900,1721320244096,-6346.7172948,0.00018943,2]
[332592901,1721320244105,-1153550.802584,0.00025,2]
[332592902,1721320244117,-798.982275,0.00025,2]
[332592903,1721320244128,-637.11,0.00025,2]
[332592904,1721320244140,-269.7700001,0.00025,2]
[332592905,1721320244151,-63477.402,0.00025,2]
[332592911,1721320244890,-10036.47290003,0.00025,2]
[332592912,1721320244901,-4642.57455799,0.00025,2]
[332592945,1721320246335,-652.36654686,0.00013898,2]
[332592947,1721320246345,-1229.63345314,0.00025,2]
[332592949,1721320246357,-2764.15138661,0.00025,2]
[332592951,1721320246369,-587.2050527,0.00025,2]
[332592953,1721320246379,-1502.556,0.00025,2]
[332592954,1721320246390,-3185.7,0.00025,2]
[332592962,1721320246459,-874.25,0.00025,2]
[332592970,1721320246529,-418.02742555,0.00025,2]
[332593006,1721320956683,1000.0,0.00024,60]
[332593007,1721320970528,2000.0,0.00024,60]
[332593008,1721320998086,1000.0,0.00024,60]
[332593027,1721321413700,232.0,0.00024891,120]
[332593039,1721321431595,-541.0092199,0.0001452,2]
[332593040,1721321431606,-206.5207801,0.0001452,2]
[332593041,1721321431615,-650.7292199,0.00014988,2]
[332593042,1721321431855,-8311.72992793,0.00014988,2]
[332593043,1721321431867,-502.90722895,0.00014988,2]
[332593044,1721321431879,-438.97877864,0.00014988,2]
[332593045,1721321431891,-285.56,0.00014988,2]
[332593046,1721321431903,-993.16479485,0.00014988,2]
[332593053,1721321432177,-567.14,0.00014988,2]
[332593054,1721321432191,-8735.45410622,0.00014988,2]
[332593055,1721321432201,-150.0,0.00015,2]
[332593056,1721321432213,-646.388186,0.00015265,2]
[332593057,1721321432223,-747.53,0.00015342,2]
[332593058,1721321432233,-300.0,0.00016063,2]
[332593059,1721321432242,-13261.49956928,0.00016064,2]
[332593060,1721321432255,-2690.44723316,0.00016064,2]
[332593061,1721321432266,-684.71908266,0.00016064,2]
[332593062,1721321432277,-2997.5,0.00016064,2]
[332593063,1721321432288,-2668.6454998,0.00016064,2]
[332593064,1721321432311,-2449.61986682,0.00016064,2]
[332593065,1721321432321,-88.85744776,0.00016067,2]
[332593066,1721321432333,-84.60255224,0.00016067,2]
[332593067,1721321432343,-747.53,0.00016164,2]
[332593068,1721321432353,-747.53,0.00016986,2]
[332593069,1721321432363,-200.0,0.00017,2]
[332593070,1721321432372,-499.99,0.00017,2]
[332593071,1721321432382,-300.0,0.00017561,2]
[332593072,1721321432392,-747.53,0.00017808,2]
[332593073,1721321432403,-157.30273304,0.00018162,2]
[332593074,1721321432414,-156.01357118,0.00018217,2]
[332593075,1721321432423,-245.95,0.00018512,2]
[332593076,1721321432432,-747.53,0.0001863,2]
[332593077,1721321432442,-250.0,0.00019,2]
[332593078,1721321432452,-717.37799015,0.00019091,2]
[332593079,1721321432463,-747.53,0.00019452,2]
[332593080,1721321432472,-156.01357118,0.0001958,2]
[332593081,1721321432481,-914.0,0.000199,2]
[332593082,1721321432491,-232.0,0.00019913,2]
[332593083,1721321432500,-754.0,0.0002,2]
[332593084,1721321432510,-160.0,0.00020008,2]
[332593085,1721321432519,-9149.18,0.00020017,2]
[332593086,1721321432528,-252.53,0.00020056,2]
[332593087,1721321432537,-2086.77,0.00020078,2]